[Event "*** Titled Tuesday Blitz"]
[Site "Chess.com"]
[Date "2020.11.24"]
[Round "4"]
[White "penguingm1"]
[Black "Savva09022009"]
[Result "0-1"]
[WhiteElo "2960"]
[BlackElo "2547"]
[TimeControl "180+1"]
[EndTime "10:58:23 PST"]
[Termination "Savva09022009 won by resignation"]

1. d4 {[%clk 0:02:59.4]} 1... Nf6 {[%clk 0:02:59.2]} 2. c4 {[%clk 0:02:56.6]}
2... e6 {[%clk 0:02:58.5]} 3. Nc3 {[%clk 0:02:55.5]} 3... Bb4 {[%clk 0:02:57.2]}
4. Qc2 {[%clk 0:02:55.3]} 4... O-O {[%clk 0:02:55.4]} 5. Nf3 {[%clk 0:02:55.3]}
5... c5 {[%clk 0:02:54.4]} 6. dxc5 {[%clk 0:02:55.4]} 6... Bxc5 {[%clk
0:02:52.9]} 7. Bg5 {[%clk 0:02:55]} 7... h6 {[%clk 0:02:51.1]} 8. Bh4 {[%clk
0:02:52]} 8... Be7 {[%clk 0:02:45.6]} 9. e3 {[%clk 0:02:26.5]} 9... d5 {[%clk
0:02:39.8]} 10. Rd1 {[%clk 0:02:23.9]} 10... Qa5 {[%clk 0:02:32.1]} 11. a3
{[%clk 0:02:07.9]} 11... dxc4 {[%clk 0:02:28.7]} 12. Bxc4 {[%clk 0:02:05.4]}
12... a6 {[%clk 0:02:25.7]} 13. O-O {[%clk 0:01:55.8]} 13... b5 {[%clk
0:02:23.1]} 14. Bd3 {[%clk 0:01:53.5]} 14... Bb7 {[%clk 0:02:20.6]} 15. Ne4
{[%clk 0:01:05.1]} 15... Rc8 {[%clk 0:01:52.8]} 16. Qb1 {[%clk 0:00:58.4]} 16...
Bxe4 {[%clk 0:01:37.2]} 17. Bxe4 {[%clk 0:00:59.3]} 17... Nxe4 {[%clk
0:01:37.4]} 18. Bxe7 {[%clk 0:00:22.7]} 18... Nf6 {[%clk 0:01:02.2]} 19. Bxf6
{[%clk 0:00:20.5]} 19... gxf6 {[%clk 0:01:03.1]} 20. Qe4 {[%clk 0:00:21]} 20...
Nc6 {[%clk 0:00:57]} 21. Rd7 {[%clk 0:00:19.8]} 21... Ra7 {[%clk 0:00:35.3]} 22.
Rfd1 {[%clk 0:00:09.5]} 22... Rxd7 {[%clk 0:00:29.5]} 23. Rxd7 {[%clk
0:00:10.4]} 23... Rc7 {[%clk 0:00:29.8]} 24. Rd6 {[%clk 0:00:10.4]} 24... Ne5
{[%clk 0:00:25.2]} 25. h4 {[%clk 0:00:08.8]} 25... Rc1+ {[%clk 0:00:23.4]} 26.
Kh2 {[%clk 0:00:08.6]} 26... Qc7 {[%clk 0:00:23.5]} 27. Qa8+ {[%clk 0:00:03.2]}
27... Kg7 {[%clk 0:00:19.8]} 28. Qd8 {[%clk 0:00:03.8]} 28... Nxf3+ {[%clk
0:00:20.1]} 29. gxf3 {[%clk 0:00:04]} 29... Qc5 {[%clk 0:00:19.6]} 30. Rd4
{[%clk 0:00:03.4]} 30... h5 {[%clk 0:00:14.9]} 31. Rf4 {[%clk 0:00:02.9]} 31...
Qe5 {[%clk 0:00:13.6]} 32. Qd2 {[%clk 0:00:02.8]} 32... Rb1 {[%clk 0:00:12.6]}
33. b4 {[%clk 0:00:02.1]} 33... Rb2 {[%clk 0:00:12.2]} 34. Qe1 {[%clk
0:00:02.6]} 34... Ra2 {[%clk 0:00:10.3]} 35. Kh3 {[%clk 0:00:02.7]} 35... Rxa3
{[%clk 0:00:10.2]} 36. Qg1+ {[%clk 0:00:03.1]} 36... Kh7 {[%clk 0:00:10.4]} 37.
Qb1+ {[%clk 0:00:02.9]} 37... Kg7 {[%clk 0:00:09.7]} 38. Rd4 {[%clk 0:00:02.3]}
38... Qf5+ {[%clk 0:00:07.6]} 39. Qxf5 {[%clk 0:00:02.5]} 39... exf5 {[%clk
0:00:08.5]} 40. Kg3 {[%clk 0:00:02.9]} 40... Kg6 {[%clk 0:00:08.6]} 41. Kf4
{[%clk 0:00:03.1]} 41... Ra4 {[%clk 0:00:08.3]} 42. Kg3 {[%clk 0:00:03.1]} 42...
Ra2 {[%clk 0:00:08]} 43. Rd8 {[%clk 0:00:02]} 43... Kg7 {[%clk 0:00:07.1]} 44.
Rd4 {[%clk 0:00:02.5]} 44... Kg6 {[%clk 0:00:07]} 45. Rd6 {[%clk 0:00:02.7]}
45... Ra4 {[%clk 0:00:06.5]} 46. Rb6 {[%clk 0:00:02.9]} 46... Rxb4 {[%clk
0:00:06.6]} 47. Rxa6 {[%clk 0:00:03.4]} 47... Rb1 {[%clk 0:00:04.7]} 48. Rb6
{[%clk 0:00:03.8]} 48... b4 {[%clk 0:00:05.2]} 49. Kf4 {[%clk 0:00:04.1]} 49...
b3 {[%clk 0:00:05.8]} 50. Rb8 {[%clk 0:00:03.9]} 50... b2 {[%clk 0:00:06]} 51.
Rb5 {[%clk 0:00:04.2]} 51... Rh1 {[%clk 0:00:04]} 52. Rxb2 {[%clk 0:00:04.3]}
52... Rxh4+ {[%clk 0:00:04.6]} 53. Kg3 {[%clk 0:00:05]} 53... Ra4 {[%clk
0:00:05.1]} 54. Rb5 {[%clk 0:00:05.4]} 54... Ra3 {[%clk 0:00:04.9]} 55. Kf4
{[%clk 0:00:04.7]} 55... Ra2 {[%clk 0:00:05.2]} 56. Kg3 {[%clk 0:00:04.3]} 56...
Rc2 {[%clk 0:00:04.4]} 57. Rb8 {[%clk 0:00:04.6]} 57... Ra2 {[%clk 0:00:04.9]}
58. Kg2 {[%clk 0:00:04.3]} 58... Kg7 {[%clk 0:00:05.2]} 59. Rb4 {[%clk
0:00:04.3]} 59... Kg6 {[%clk 0:00:06.1]} 60. Rb6 {[%clk 0:00:04.5]} 60... Rc2
{[%clk 0:00:05.6]} 61. Rb5 {[%clk 0:00:04.9]} 61... Ra2 {[%clk 0:00:05.2]} 62.
Rb1 {[%clk 0:00:05.4]} 62... Rc2 {[%clk 0:00:05.5]} 63. Rg1 {[%clk 0:00:05.6]}
63... Ra2 {[%clk 0:00:05.8]} 64. Kg3 {[%clk 0:00:06.1]} 64... Kh6 {[%clk
0:00:06.2]} 65. Rg2 {[%clk 0:00:06.5]} 65... Kg5 {[%clk 0:00:06.1]} 66. Rh2
{[%clk 0:00:05.3]} 66... f4+ {[%clk 0:00:06.3]} 67. exf4+ {[%clk 0:00:05.3]}
67... Kg6 {[%clk 0:00:06.6]} 68. f5+ {[%clk 0:00:04.8]} 68... Kg5 {[%clk
0:00:06.3]} 69. f4+ {[%clk 0:00:03.5]} 69... Kxf5 {[%clk 0:00:06.8]} 70. Rxh5+
{[%clk 0:00:04]} 70... Kg6 {[%clk 0:00:07.3]} 71. Rh8 {[%clk 0:00:04.1]} 71...
Ra3+ {[%clk 0:00:07.6]} 72. Kg4 {[%clk 0:00:03.6]} 72... f5+ {[%clk 0:00:07.3]}
73. Kh4 {[%clk 0:00:04.2]} 73... Rf3 {[%clk 0:00:07.1]} 74. Rg8+ {[%clk
0:00:04.1]} 74... Kf6 {[%clk 0:00:06.8]} 75. Rb8 {[%clk 0:00:04.2]} 75... Rxf2
{[%clk 0:00:06.6]} 76. Rb6+ {[%clk 0:00:04]} 76... Kg7 {[%clk 0:00:06.4]} 77.
Kg5 {[%clk 0:00:04.7]} 77... Ra2 {[%clk 0:00:06.3]} 78. Rb5 {[%clk 0:00:04.7]}
78... Rg2+ {[%clk 0:00:05.2]} 79. Kxf5 {[%clk 0:00:05]} 79... Rh2 {[%clk
0:00:06.1]} 80. Rb3 {[%clk 0:00:05.1]} 80... Rh5+ {[%clk 0:00:06.1]} 81. Kg4
{[%clk 0:00:05.6]} 81... Ra5 {[%clk 0:00:06.9]} 82. Rh3 {[%clk 0:00:05.6]} 82...
Ra4 {[%clk 0:00:07]} 83. Rg3 {[%clk 0:00:06]} 83... Ra5 {[%clk 0:00:07.1]} 84.
Kh4+ {[%clk 0:00:06.4]} 84... Kf6 {[%clk 0:00:07.3]} 85. Rb3 {[%clk 0:00:06.7]}
85... Kf5 {[%clk 0:00:07.4]} 86. Kg3 {[%clk 0:00:07.2]} 86... f6 {[%clk
0:00:07.5]} 87. Rc3 {[%clk 0:00:07]} 87... Rb5 {[%clk 0:00:07.2]} 88. Rd3 {[%clk
0:00:07.4]} 88... Ra5 {[%clk 0:00:07.4]} 89. Rf3 {[%clk 0:00:07.8]} 89... Rb5
{[%clk 0:00:07.5]} 90. Re3 {[%clk 0:00:07.8]} 90... Ra5 {[%clk 0:00:07.5]} 91.
Rb3 {[%clk 0:00:08]} 91... Rc5 {[%clk 0:00:07.3]} 92. Ra3 {[%clk 0:00:08.4]}
92... Rb5 {[%clk 0:00:07.2]} 93. Ra6 {[%clk 0:00:07.6]} 93... Rc5 {[%clk
0:00:07.1]} 94. Kh4 {[%clk 0:00:06.4]} 94... Kxf4 {[%clk 0:00:06.5]} 95. Rxf6+
{[%clk 0:00:06.4]} 95... Rf5 {[%clk 0:00:05.3]} 96. Re6 {[%clk 0:00:06.5]} 96...
Rb5 {[%clk 0:00:05.5]} 97. Ra6 {[%clk 0:00:06.4]} 97... Rb4 {[%clk 0:00:04.9]}
98. Rg6 {[%clk 0:00:04.3]} 98... Ke3+ {[%clk 0:00:04.5]} 99. Kg3 {[%clk
0:00:03.7]} 99... Rb1 {[%clk 0:00:05.1]} 100. Re6+ {[%clk 0:00:03.7]} 100... Kd4
{[%clk 0:00:05.7]} 101. Kf2 {[%clk 0:00:01]} 101... Rb2+ {[%clk 0:00:05.4]} 102.
Kf3 {[%clk 0:00:01.2]} 102... Rb1 {[%clk 0:00:06.3]} 103. Rd6+ {[%clk
0:00:01.5]} 103... Ke5 {[%clk 0:00:06.5]} 104. Rd2 {[%clk 0:00:02]} 104... Rb3+
{[%clk 0:00:06.5]} 105. Kg4 {[%clk 0:00:02.6]} 105... Ke4 {[%clk 0:00:06.9]}
106. Rd8 {[%clk 0:00:02.8]} 106... Rb1 {[%clk 0:00:06.8]} 107. Re8+ {[%clk
0:00:03.4]} 107... Kd5 {[%clk 0:00:07.3]} 108. Kf3 {[%clk 0:00:03.3]} 108...
Rb3+ {[%clk 0:00:06.7]} 109. Ke2 {[%clk 0:00:03.9]} 109... Rb2+ {[%clk
0:00:05.9]} 110. Kd3 {[%clk 0:00:04.1]} 110... Rb3+ {[%clk 0:00:06.8]} 111. Kc2
{[%clk 0:00:04.7]} 111... Rh3 {[%clk 0:00:07.7]} 112. Kb2 {[%clk 0:00:04.6]}
112... Kc4 {[%clk 0:00:08.1]} 113. Rc8+ {[%clk 0:00:04.9]} 113... Kb4 {[%clk
0:00:08.7]} 114. Rb8+ {[%clk 0:00:05.4]} 114... Kc4 {[%clk 0:00:09.2]} 115. Rh8
{[%clk 0:00:06.1]} 115... Rxh8 {[%clk 0:00:08.3]} 0-1

[Event "*** Titled Tuesday Blitz"]
[Site "Chess.com"]
[Date "2020.11.24"]
[Round "5"]
[White "WiktoriaPOL"]
[Black "Tsyhanchuk_Stanislav"]
[Result "1-0"]
[WhiteElo "2073"]
[BlackElo "2237"]
[TimeControl "180+1"]
[EndTime "11:06:32 PST"]
[Termination "WiktoriaPOL won by resignation"]

1. c4 {[%clk 0:03:00.9]} 1... Nf6 {[%clk 0:02:59.5]} 2. Nc3 {[%clk 0:03:00.5]}
2... c5 {[%clk 0:02:58.8]} 3. Nf3 {[%clk 0:02:59.9]} 3... e6 {[%clk 0:02:58.7]}
4. d4 {[%clk 0:02:59.9]} 4... cxd4 {[%clk 0:02:56.7]} 5. Nxd4 {[%clk 0:03:00.8]}
5... a6 {[%clk 0:02:57.3]} 6. g3 {[%clk 0:03:00.6]} 6... Qc7 {[%clk 0:02:54.4]}
7. b3 {[%clk 0:02:58.9]} 7... b6 {[%clk 0:02:53]} 8. Bg2 {[%clk 0:02:57.9]} 8...
Bb7 {[%clk 0:02:53.7]} 9. O-O {[%clk 0:02:51.1]} 9... Be7 {[%clk 0:02:52.7]} 10.
Bf4 {[%clk 0:02:44.3]} 10... e5 {[%clk 0:02:50.4]} 11. Bxb7 {[%clk 0:02:43]}
11... Qxb7 {[%clk 0:02:42.8]} 12. Bxe5 {[%clk 0:02:42.8]} 12... O-O {[%clk
0:02:41.1]} 13. Nf5 {[%clk 0:02:37]} 13... d5 {[%clk 0:02:33]} 14. Nxd5 {[%clk
0:02:31.5]} 14... Nxd5 {[%clk 0:02:27.7]} 15. Qxd5 {[%clk 0:02:29.6]} 15... Qd7
{[%clk 0:02:28.6]} 16. Qxd7 {[%clk 0:02:29]} 16... Nxd7 {[%clk 0:02:28.4]} 17.
Nxe7+ {[%clk 0:02:29.6]} 17... Kh8 {[%clk 0:02:27.2]} 18. Bb2 {[%clk 0:02:29.1]}
1-0

[Event "*** Titled Tuesday Blitz"]
[Site "Chess.com"]
[Date "2020.11.24"]
[Round "5"]
[White "picturesquecheck"]
[Black "Smile2005"]
[Result "0-1"]
[WhiteElo "2112"]
[BlackElo "2346"]
[TimeControl "180+1"]
[EndTime "11:07:20 PST"]
[Termination "Smile2005 won by resignation"]

1. e4 {[%clk 0:03:00.9]} 1... d5 {[%clk 0:02:55.6]} 2. exd5 {[%clk 0:02:55.8]}
2... Nf6 {[%clk 0:02:55.5]} 3. Nf3 {[%clk 0:02:54.5]} 3... Nxd5 {[%clk
0:02:55.7]} 4. d4 {[%clk 0:02:54.7]} 4... Bg4 {[%clk 0:02:55.3]} 5. Be2 {[%clk
0:02:52.9]} 5... e6 {[%clk 0:02:54.7]} 6. O-O {[%clk 0:02:48.9]} 6... Be7 {[%clk
0:02:55]} 7. h3 {[%clk 0:02:48.5]} 7... Bh5 {[%clk 0:02:55]} 8. c4 {[%clk
0:02:47.7]} 8... Nb6 {[%clk 0:02:55.2]} 9. b3 {[%clk 0:02:48]} 9... O-O {[%clk
0:02:55.3]} 10. Bb2 {[%clk 0:02:48.1]} 10... Nc6 {[%clk 0:02:55.7]} 11. Nbd2
{[%clk 0:02:47.4]} 11... Bg6 {[%clk 0:02:55.4]} 12. Re1 {[%clk 0:02:45.7]} 12...
Bf6 {[%clk 0:02:55.3]} 13. Nf1 {[%clk 0:02:33.8]} 13... Nb4 {[%clk 0:02:52.5]}
14. Ne3 {[%clk 0:02:30]} 14... c5 {[%clk 0:02:46.2]} 15. Bc3 {[%clk 0:02:15.4]}
15... Nc6 {[%clk 0:02:38.8]} 16. Ne5 {[%clk 0:02:10.4]} 16... cxd4 {[%clk
0:02:32.5]} 17. Nxc6 {[%clk 0:02:02.8]} 17... bxc6 {[%clk 0:02:25.1]} 18. c5
{[%clk 0:01:56.3]} 18... dxe3 {[%clk 0:02:19.1]} 0-1

[Event "*** Titled Tuesday Blitz"]
[Site "Chess.com"]
[Date "2020.11.24"]
[Round "5"]
[White "rugbyclub"]
[Black "AbdAlAgathos"]
[Result "0-1"]
[WhiteElo "2184"]
[BlackElo "2363"]
[TimeControl "180+1"]
[EndTime "11:07:39 PST"]
[Termination "AbdAlAgathos won by resignation"]

1. e4 {[%clk 0:03:00.9]} 1... e6 {[%clk 0:02:57.1]} 2. d4 {[%clk 0:03:00]} 2...
d5 {[%clk 0:02:57.5]} 3. e5 {[%clk 0:03:00]} 3... c5 {[%clk 0:02:57.2]} 4. c3
{[%clk 0:02:59.9]} 4... Nc6 {[%clk 0:02:56.5]} 5. Nf3 {[%clk 0:02:58]} 5... Bd7
{[%clk 0:02:56.6]} 6. a3 {[%clk 0:02:57.7]} 6... f6 {[%clk 0:02:55.7]} 7. b4
{[%clk 0:02:50.1]} 7... cxd4 {[%clk 0:02:52.8]} 8. b5 {[%clk 0:02:42.5]} 8...
Nxe5 {[%clk 0:02:49.4]} 9. Nxe5 {[%clk 0:02:42.2]} 9... fxe5 {[%clk 0:02:50.3]}
10. Qh5+ {[%clk 0:02:42]} 10... g6 {[%clk 0:02:46.7]} 11. Qxe5 {[%clk
0:02:41.6]} 11... Nf6 {[%clk 0:02:26.6]} 12. cxd4 {[%clk 0:02:36.7]} 12... Bg7
{[%clk 0:02:26.7]} 13. Bg5 {[%clk 0:02:35]} 13... Qa5+ {[%clk 0:02:15.5]} 14.
Nd2 {[%clk 0:02:34]} 14... O-O {[%clk 0:02:11.1]} 15. Bd3 {[%clk 0:02:09.8]}
15... Ne4 {[%clk 0:01:50.2]} 0-1

[Event "*** Titled Tuesday Blitz"]
[Site "Chess.com"]
[Date "2020.11.24"]
[Round "5"]
[White "bylavochka"]
[Black "vladgoncharov"]
[Result "0-1"]
[WhiteElo "2171"]
[BlackElo "2482"]
[TimeControl "180+1"]
[EndTime "11:07:56 PST"]
[Termination "vladgoncharov won by resignation"]

1. e4 {[%clk 0:03:00.9]} 1... e6 {[%clk 0:02:56.7]} 2. d4 {[%clk 0:03:00.9]}
2... d5 {[%clk 0:02:57.4]} 3. Bd3 {[%clk 0:02:58.9]} 3... dxe4 {[%clk
0:02:55.9]} 4. Bxe4 {[%clk 0:02:59.8]} 4... Nf6 {[%clk 0:02:56.3]} 5. Bf3 {[%clk
0:02:59.6]} 5... Nbd7 {[%clk 0:02:56.9]} 6. Ne2 {[%clk 0:02:56]} 6... Bd6 {[%clk
0:02:57.3]} 7. O-O {[%clk 0:02:55.9]} 7... e5 {[%clk 0:02:52.4]} 8. Nbc3 {[%clk
0:02:55]} 8... O-O {[%clk 0:02:50.2]} 9. Be3 {[%clk 0:02:44.8]} 9... Re8 {[%clk
0:02:48.6]} 10. Ng3 {[%clk 0:02:41.6]} 10... exd4 {[%clk 0:02:41.9]} 11. Bxd4
{[%clk 0:02:41.1]} 11... Ne5 {[%clk 0:02:42.2]} 12. Bxe5 {[%clk 0:02:31.7]}
12... Bxe5 {[%clk 0:02:39.5]} 13. Qxd8 {[%clk 0:02:30.7]} 13... Rxd8 {[%clk
0:02:40.4]} 14. Rad1 {[%clk 0:02:24.7]} 14... Rf8 {[%clk 0:02:37.2]} 15. Rfe1
{[%clk 0:02:07.7]} 15... Bxc3 {[%clk 0:02:36.3]} 16. bxc3 {[%clk 0:02:08.6]}
16... c6 {[%clk 0:02:36.6]} 17. Re7 {[%clk 0:02:05]} 17... g6 {[%clk 0:02:26.4]}
18. h4 {[%clk 0:01:54]} 18... Re8 {[%clk 0:02:19.1]} 19. Rxe8+ {[%clk
0:01:47.9]} 19... Nxe8 {[%clk 0:02:18.5]} 20. Rd8 {[%clk 0:01:47.6]} 20... Kf8
{[%clk 0:02:16.8]} 21. Bg4 {[%clk 0:01:47.9]} 21... f5 {[%clk 0:02:14]} 22. Nxf5
{[%clk 0:01:44]} 22... Bxf5 {[%clk 0:02:06.7]} 23. Rb8 {[%clk 0:01:42.9]} 23...
Rxb8 {[%clk 0:02:03.3]} 0-1

[Event "*** Titled Tuesday Blitz"]
[Site "Chess.com"]
[Date "2020.11.24"]
[Round "5"]
[White "Supernotar"]
[Black "tlomigtlis"]
[Result "1/2-1/2"]
[WhiteElo "2854"]
[BlackElo "2585"]
[TimeControl "180+1"]
[EndTime "11:08:09 PST"]
[Termination "Game drawn by agreement"]

1. d4 {[%clk 0:03:00.9]} 1... d5 {[%clk 0:02:57.7]} 2. c4 {[%clk 0:03:01]} 2...
c6 {[%clk 0:02:57.4]} 3. e3 {[%clk 0:03:01.2]} 3... Nf6 {[%clk 0:02:56.5]} 4.
Bd3 {[%clk 0:03:01.3]} 4... Bg4 {[%clk 0:02:50.4]} 5. Qc2 {[%clk 0:03:00.8]}
5... Nbd7 {[%clk 0:02:49.3]} 6. Nd2 {[%clk 0:03:00.9]} 6... e6 {[%clk
0:02:49.2]} 7. Ngf3 {[%clk 0:03:01.1]} 7... Bd6 {[%clk 0:02:48.4]} 8. b3 {[%clk
0:03:01]} 8... e5 {[%clk 0:02:46.4]} 9. dxe5 {[%clk 0:02:58.4]} 9... Nxe5 {[%clk
0:02:46.4]} 10. Nxe5 {[%clk 0:02:58.7]} 10... Bxe5 {[%clk 0:02:47.3]} 11. Bb2
{[%clk 0:02:59.1]} 11... Bxb2 {[%clk 0:02:44.9]} 12. Qxb2 {[%clk 0:03:00]} 12...
O-O {[%clk 0:02:42.7]} 13. O-O {[%clk 0:02:59.1]} 13... Qd6 {[%clk 0:02:39.5]}
14. h3 {[%clk 0:02:54.6]} 14... Bh5 {[%clk 0:02:34.5]} 15. cxd5 {[%clk
0:02:48.3]} 15... Nxd5 {[%clk 0:02:30.7]} 16. Nc4 {[%clk 0:02:45.5]} 16... Qf6
{[%clk 0:02:23.1]} 17. Qxf6 {[%clk 0:02:39.6]} 17... Nxf6 {[%clk 0:02:24]} 18.
f3 {[%clk 0:02:34.3]} 18... Rad8 {[%clk 0:02:21]} 19. Rfd1 {[%clk 0:02:31.5]}
19... Nd5 {[%clk 0:02:17.1]} 20. Kf2 {[%clk 0:02:16.2]} 20... Rfe8 {[%clk
0:02:14.4]} 21. e4 {[%clk 0:02:04.2]} 21... Nb4 {[%clk 0:01:48.8]} 22. Bf1
{[%clk 0:01:53.7]} 1/2-1/2

[Event "*** Titled Tuesday Blitz"]
[Site "Chess.com"]
[Date "2020.11.24"]
[Round "5"]
[White "Chernov_Mikhail"]
[Black "RamyresCoelho"]
[Result "1-0"]
[WhiteElo "2329"]
[BlackElo "2091"]
[TimeControl "180+1"]
[EndTime "11:08:26 PST"]
[Termination "Chernov_Mikhail won by resignation"]

1. e4 {[%clk 0:03:00.9]} 1... c5 {[%clk 0:02:59.8]} 2. Nf3 {[%clk 0:03:00.1]}
2... d6 {[%clk 0:02:59.8]} 3. d4 {[%clk 0:03:00.6]} 3... cxd4 {[%clk 0:03:00.7]}
4. Nxd4 {[%clk 0:03:01.1]} 4... Nf6 {[%clk 0:03:01.2]} 5. Nc3 {[%clk 0:03:01.7]}
5... a6 {[%clk 0:03:01.6]} 6. Bc4 {[%clk 0:03:02.4]} 6... e5 {[%clk 0:03:01.7]}
7. Nde2 {[%clk 0:03:00.8]} 7... Be7 {[%clk 0:03:01.5]} 8. O-O {[%clk 0:03:00.7]}
8... O-O {[%clk 0:03:01.3]} 9. Bb3 {[%clk 0:02:57.6]} 9... b5 {[%clk 0:03:01.1]}
10. Ng3 {[%clk 0:02:51.6]} 10... b4 {[%clk 0:02:57.7]} 11. Nd5 {[%clk
0:02:51.2]} 11... Nxd5 {[%clk 0:02:56.4]} 12. Bxd5 {[%clk 0:02:52.1]} 12... Ra7
{[%clk 0:02:54.4]} 13. Be3 {[%clk 0:02:52.2]} 13... Rd7 {[%clk 0:02:52.2]} 14.
Nf5 {[%clk 0:02:47.8]} 14... Bf6 {[%clk 0:02:50.2]} 15. a3 {[%clk 0:02:38.1]}
15... bxa3 {[%clk 0:02:34]} 16. Rxa3 {[%clk 0:02:39]} 16... Bg5 {[%clk
0:02:22.5]} 17. Bxg5 {[%clk 0:02:32.1]} 17... Qxg5 {[%clk 0:02:23.4]} 18. Rg3
{[%clk 0:02:32.3]} 18... Qf6 {[%clk 0:02:20.2]} 19. Rxg7+ {[%clk 0:02:27.2]}
19... Qxg7 {[%clk 0:02:11.3]} 20. Nxg7 {[%clk 0:02:28.1]} 20... Kxg7 {[%clk
0:02:12.2]} 21. Qg4+ {[%clk 0:02:21.4]} 21... Kh8 {[%clk 0:02:11.2]} 22. f4
{[%clk 0:02:07.4]} 22... f5 {[%clk 0:02:07.7]} 23. exf5 {[%clk 0:01:47.6]} 23...
Rg7 {[%clk 0:02:07.7]} 24. Qh4 {[%clk 0:01:46.4]} 24... Bxf5 {[%clk 0:02:06.7]}
25. fxe5 {[%clk 0:01:46.7]} 25... dxe5 {[%clk 0:02:01]} 26. Rxf5 {[%clk
0:01:47]} 26... Rxf5 {[%clk 0:01:44.1]} 27. Qd8+ {[%clk 0:01:46.5]} 1-0

[Event "*** Titled Tuesday Blitz"]
[Site "Chess.com"]
[Date "2020.11.24"]
[Round "5"]
[White "ashookk"]
[Black "keepitcoming"]
[Result "1-0"]
[WhiteElo "2250"]
[BlackElo "2375"]
[TimeControl "180+1"]
[EndTime "11:08:33 PST"]
[Termination "ashookk won by resignation"]

1. Nf3 {[%clk 0:02:37.7]} 1... d5 {[%clk 0:02:52.2]} 2. c4 {[%clk 0:02:37.5]}
2... e6 {[%clk 0:02:51.7]} 3. Qc2 {[%clk 0:02:37.2]} 3... c5 {[%clk 0:02:48.3]}
4. cxd5 {[%clk 0:02:36.1]} 4... exd5 {[%clk 0:02:49.2]} 5. d4 {[%clk 0:02:36]}
5... Nf6 {[%clk 0:02:29.9]} 6. Bg5 {[%clk 0:02:34.5]} 6... Be7 {[%clk
0:02:24.3]} 7. e3 {[%clk 0:02:34.5]} 7... O-O {[%clk 0:02:23.7]} 8. Nc3 {[%clk
0:02:33]} 8... c4 {[%clk 0:02:23.2]} 9. Ne5 {[%clk 0:02:30.9]} 9... Nc6 {[%clk
0:02:21.7]} 10. Nxc6 {[%clk 0:02:29.5]} 10... bxc6 {[%clk 0:02:22.6]} 11. Be2
{[%clk 0:02:28.6]} 11... Rb8 {[%clk 0:02:14.1]} 12. O-O {[%clk 0:02:25]} 12...
Qb6 {[%clk 0:02:10]} 13. Na4 {[%clk 0:02:10.4]} 13... Qb4 {[%clk 0:02:00.4]} 14.
Bxf6 {[%clk 0:01:49.8]} 14... Bxf6 {[%clk 0:01:59.6]} 15. b3 {[%clk 0:01:50.1]}
15... cxb3 {[%clk 0:01:52.3]} 16. axb3 {[%clk 0:01:49.7]} 16... Qxb3 {[%clk
0:01:07.6]} 17. Qxb3 {[%clk 0:01:48.1]} 17... Rxb3 {[%clk 0:01:08.5]} 18. Nc5
{[%clk 0:01:48.4]} 18... Bf5 {[%clk 0:01:05.6]} 19. Nxb3 {[%clk 0:01:47.5]} 1-0

[Event "*** Titled Tuesday Blitz"]
[Site "Chess.com"]
[Date "2020.11.24"]
[Round "5"]
[White "1e41-0"]
[Black "Kretov_Evgenij"]
[Result "1-0"]
[WhiteElo "2673"]
[BlackElo "2446"]
[TimeControl "180+1"]
[EndTime "11:08:45 PST"]
[Termination "1e41-0 won by resignation"]

1. d4 {[%clk 0:03:00.9]} 1... Nf6 {[%clk 0:02:59.5]} 2. c4 {[%clk 0:03:01.3]}
2... e6 {[%clk 0:02:59.8]} 3. Nc3 {[%clk 0:03:01.7]} 3... Bb4 {[%clk 0:02:59.7]}
4. f3 {[%clk 0:03:02.3]} 4... c5 {[%clk 0:02:59.2]} 5. d5 {[%clk 0:03:02.4]}
5... b5 {[%clk 0:02:56.2]} 6. e4 {[%clk 0:03:02.3]} 6... bxc4 {[%clk 0:02:56.1]}
7. Bxc4 {[%clk 0:03:03.2]} 7... O-O {[%clk 0:02:55.6]} 8. Bg5 {[%clk 0:02:54.5]}
8... h6 {[%clk 0:02:54]} 9. Bh4 {[%clk 0:02:54]} 9... g5 {[%clk 0:02:53.7]} 10.
Bg3 {[%clk 0:02:54.2]} 10... exd5 {[%clk 0:02:53.5]} 11. Bxd5 {[%clk 0:02:54.1]}
11... Nxd5 {[%clk 0:02:50.9]} 12. Qxd5 {[%clk 0:02:55]} 12... Nc6 {[%clk
0:02:42.6]} 13. Ne2 {[%clk 0:02:53.8]} 13... Ba6 {[%clk 0:02:42.4]} 14. h4
{[%clk 0:02:51.1]} 14... Ne7 {[%clk 0:02:39.4]} 15. Qd6 {[%clk 0:02:48.3]} 15...
Bxe2 {[%clk 0:02:38.7]} 16. hxg5 {[%clk 0:02:38.2]} 16... Ng6 {[%clk 0:02:34.5]}
17. Kxe2 {[%clk 0:02:25.1]} 17... Qxg5 {[%clk 0:02:34.1]} 18. Nd5 {[%clk
0:02:08.1]} 18... Qd2+ {[%clk 0:02:31.4]} 19. Kf1 {[%clk 0:02:07.6]} 19... Qxb2
{[%clk 0:02:30.5]} 20. Rd1 {[%clk 0:02:02.4]} 20... Bc3 {[%clk 0:02:21.3]} 21.
Rxh6 {[%clk 0:01:52.4]} 21... Bg7 {[%clk 0:02:13.5]} 22. Rxg6 {[%clk 0:01:37.2]}
22... fxg6 {[%clk 0:02:13.6]} 23. Ne7+ {[%clk 0:01:37.3]} 23... Kf7 {[%clk
0:01:51.2]} 24. Qd5+ {[%clk 0:01:37.2]} 24... Kxe7 {[%clk 0:01:44.4]} 25. Qxd7+
{[%clk 0:01:31.3]} 25... Kf6 {[%clk 0:01:44.3]} 26. Bh4+ {[%clk 0:01:21.4]}
26... g5 {[%clk 0:01:43.6]} 27. Qf5+ {[%clk 0:01:20.3]} 27... Ke7 {[%clk
0:01:43.4]} 28. Rd7+ {[%clk 0:01:20.2]} 1-0

[Event "*** Titled Tuesday Blitz"]
[Site "Chess.com"]
[Date "2020.11.24"]
[Round "5"]
[White "kasparicy"]
[Black "SamuelGhimpu2003"]
[Result "1-0"]
[WhiteElo "2401"]
[BlackElo "2615"]
[TimeControl "180+1"]
[EndTime "11:09:14 PST"]
[Termination "kasparicy won by resignation"]

1. e4 {[%clk 0:02:50.6]} 1... e6 {[%clk 0:02:50.2]} 2. d4 {[%clk 0:02:44.9]}
2... d5 {[%clk 0:02:51.1]} 3. Nd2 {[%clk 0:02:43.7]} 3... c5 {[%clk 0:02:49.1]}
4. Ngf3 {[%clk 0:02:42.9]} 4... cxd4 {[%clk 0:02:48.3]} 5. exd5 {[%clk
0:02:43.2]} 5... Qxd5 {[%clk 0:02:49.2]} 6. Bc4 {[%clk 0:02:43.6]} 6... Qd7
{[%clk 0:02:49.9]} 7. Nb3 {[%clk 0:02:42.2]} 7... Nc6 {[%clk 0:02:50.8]} 8. O-O
{[%clk 0:02:42.6]} 8... a6 {[%clk 0:02:50.3]} 9. Nbxd4 {[%clk 0:02:42.5]} 9...
Nxd4 {[%clk 0:02:51.2]} 10. Nxd4 {[%clk 0:02:43]} 10... Qc7 {[%clk 0:02:51.6]}
11. Bb3 {[%clk 0:02:40.7]} 11... Bd6 {[%clk 0:02:48]} 12. h3 {[%clk 0:02:39.6]}
12... Ne7 {[%clk 0:02:38.2]} 13. Re1 {[%clk 0:02:40]} 13... O-O {[%clk
0:02:34.7]} 14. c3 {[%clk 0:02:40.4]} 14... b5 {[%clk 0:02:34.5]} 15. Qh5 {[%clk
0:02:39.7]} 15... Bb7 {[%clk 0:02:31.7]} 16. Rxe6 {[%clk 0:02:19.1]} 16... Rae8
{[%clk 0:01:52.6]} 17. Re1 {[%clk 0:01:54.1]} 17... Ng6 {[%clk 0:01:51.3]} 18.
Be3 {[%clk 0:01:47.6]} 18... Re5 {[%clk 0:00:54.4]} 19. Qg4 {[%clk 0:01:36.7]}
19... h5 {[%clk 0:00:52.6]} 20. Qxg6 {[%clk 0:01:31]} 1-0